fUSD/lending_fUSD_20251231
["ID","MTS","AMOUNT","RATE_DAILY","PERIOD"]
[400241057,1767213040321,-1000.0,0.00010699,2]
[400241058,1767213040332,-168.86251986,0.000107,2]
[400241059,1767213040342,-1025.62390604,0.000108,2]
[400241060,1767213040354,-7432.1147842,0.00011099,2]
[400241061,1767213040364,-639.9636162,0.00011199,2]
[400241062,1767213040375,-7432.1147842,0.00011299,2]
[400241063,1767213040384,-420.0,0.00011651,2]
[400241064,1767213040395,-154.0,0.00011651,2]
[400241065,1767213040405,-892.0,0.00011658,2]
[400241066,1767213040415,-250.0,0.00011659,2]
[400241067,1767213040427,-7432.1147842,0.00011999,2]
[400241068,1767213040437,-500.0,0.00012067,2]
[400241069,1767213040448,-500.0,0.00012067,2]
[400241070,1767213040459,-500.0,0.00012067,2]
[400241071,1767213040472,-500.0,0.00012067,2]
[400241072,1767213040482,-500.0,0.00012067,2]
[400241073,1767213040491,-500.0,0.00012067,2]
[400241074,1767213040504,-502.99400047,0.00012067,2]
[400241075,1767213040514,-639.96361617,0.00012149,2]
[400241076,1767213040524,-3737.53,0.00012431,2]
[400241077,1767213040534,-1000.0,0.00012615,2]
[400241078,1767213040545,-500.0,0.00012615,2]
[400241079,1767213040555,-500.0,0.00012615,2]
[400241080,1767213040565,-500.0,0.00012615,2]
[400241081,1767213040575,-7432.1147842,0.00012699,2]
[400241082,1767213040585,-639.96361617,0.00013099,2]
[400241083,1767213040599,-1304.95,0.00013361,2]
[400241084,1767213040608,-729.82,0.00013378,2]
[400241085,1767213040619,-7432.1147842,0.00013399,2]
[400241086,1767213040629,-500.0,0.00013698,2]
[400241087,1767213040639,-394.25410514,0.00013698,2]
[400241088,1767213040650,-184.85,0.00013699,2]
[400241089,1767213040660,-200.0,0.00013699,2]
[400241090,1767213040670,-500.0,0.00013699,2]
[400241091,1767213040680,-300.0,0.00013699,2]
[400241092,1767213040690,-500.0,0.00013699,2]
[400241093,1767213040700,-503.89052975,0.00013699,2]
[400241094,1767213040711,-352.42,0.00013765,2]
[400241095,1767213040722,-516.66,0.00013855,2]
[400241096,1767213040732,-200.0,0.00013855,2]
[400241097,1767213040742,-207.4,0.00013855,2]
[400241098,1767213040751,-215.0738,0.00013855,2]
[400241099,1767213040761,-223.0315306,0.00013855,2]
[400241100,1767213040771,-231.28369723,0.00013855,2]
[400241101,1767213040780,-239.84119403,0.00013855,2]
[400241102,1767213040790,-248.71531821,0.00013855,2]
[400241103,1767213040804,-257.91778498,0.00013855,2]
[400241104,1767213040814,-155.89193308,0.00013855,2]
[400241105,1767213040825,-111865.77786263,0.0001399,2]
[400241106,1767213040834,-639.96361617,0.0001405,2]
[400241107,1767213040845,-7432.1147842,0.000141,2]
[400241108,1767213040855,-250.0,0.00014301,2]
[400241109,1767213040865,-184.85,0.00014384,2]
[400241110,1767213040875,-10289.7991648,0.0001439,2]
[400241111,1767213040886,-2000.0,0.00014766,2]
[400241112,1767213040896,-1368.052,0.00014766,2]
[400241113,1767213040906,-7432.1147842,0.000148,2]
[400241114,1767213040916,-5014.92,0.00014999,2]
[400241115,1767213040926,-639.96361617,0.00015,2]
[400241116,1767213040936,-2043.16270644,0.00015,2]
[400241117,1767213040946,-5941.81705286,0.00015,2]
[400241118,1767213040956,-22942.37968616,0.00015,2]
[400241120,1767213040965,-1430.69,0.00015049,2]
[400241121,1767213040975,-184.85,0.00015068,2]
[400241122,1767213040988,-3605.121,0.00015206,2]
[400241123,1767213040999,-1328.0,0.00015206,2]
[400241124,1767213041010,-613.0,0.00015206,2]
[400241125,1767213041020,-912.51,0.00015249,2]
[400241126,1767213041033,-150.0,0.00015288,2]
[400241127,1767213041043,-153.50138107,0.00015288,2]
[400241128,1767213041054,-150.0,0.00015288,2]
[400241129,1767213041064,-150.0,0.00015288,2]
[400241130,1767213041074,-153.00859182,0.00015288,2]
[400241131,1767213041083,-150.0,0.00015288,2]
[400241132,1767213041095,-159.79234636,0.00015288,2]
[400241133,1767213041105,-1517.64,0.000153,2]
[400241134,1767213041115,-1264.0,0.0001531,2]
[400241135,1767213041125,-432.0,0.0001531,2]
[400241136,1767213041135,-913.0,0.0001531,2]
[400241137,1767213041144,-1199.0,0.0001531,2]
[400241138,1767213041432,-831.0,0.000154,2]
[400241139,1767213041447,-506.50076921,0.000154,2]
[400241140,1767213041457,-151.88196593,0.00015428,2]
[400241141,1767213041468,-660.35,0.00015452,2]
[400241142,1767213041478,-1144.49982301,0.0001548,2]
[400241143,1767213041488,-7432.1147842,0.000155,2]
[400241144,1767213041499,-328.39570891,0.00015542,2]
[400241145,1767213041510,-4239.57537948,0.00015542,2]
[400241146,1767213041520,-2337.20378785,0.00015542,2]
[400241147,1767213041529,-1191.58848856,0.00015542,2]
[400241148,1767213041539,-151.0,0.00015727,2]
[400241149,1767213041550,-151.0,0.00015727,2]
[400241150,1767213041561,-151.0,0.00015727,2]
[400241151,1767213041571,-151.0,0.00015727,2]
[400241152,1767213041580,-235.84568341,0.00015752,2]
[400241153,1767213041590,-184.85,0.00015753,2]
[400241154,1767213041599,-151.0,0.00015759,2]
[400241155,1767213041609,-375734.86,0.00015763,2]
[400241156,1767213041619,-2045.05502519,0.00015807,2]
[400241157,1767213041630,-1454.0,0.0001589,2]
[400241158,1767213041640,-639.96361617,0.0001595,2]
[400241159,1767213041655,-500.0,0.00015973,2]
[400241160,1767213041666,-500.0,0.00015973,2]
[400241161,1767213041676,-500.0,0.00015973,2]
[400241162,1767213041686,-500.0,0.00015973,2]
[400241163,1767213041696,-500.0,0.00015973,2]
[400241164,1767213041707,-500.0,0.00015973,2]
[400241165,1767213041719,-500.0,0.00015973,2]
[400241166,1767213041729,-500.0,0.00015973,2]
[400241167,1767213041740,-500.0,0.00015973,2]
[400241168,1767213041750,-500.0,0.00015973,2]
[400241169,1767213041761,-500.0,0.00015973,2]
[400241170,1767213041771,-500.0,0.00015973,2]
[400241171,1767213041781,-500.0,0.00015973,2]
[400241172,1767213041791,-500.0,0.00015973,2]
[400241173,1767213041801,-295.12,0.00015973,2]
[400241174,1767213041811,-78605.77331428,0.00016,4]
[400241175,1767213041821,-481.83,0.00016055,2]
[400241176,1767213041831,-1320.7,0.00016055,2]
[400241177,1767213041840,-481.83,0.00016055,2]
[400241178,1767213041852,-481.83,0.00016055,2]
[400241179,1767213041862,-660.35,0.00016055,2]
[400241180,1767213041872,-481.83,0.00016055,2]
[400241181,1767213041883,-660.35,0.00016055,2]
[400241182,1767213041893,-660.35,0.00016055,2]
[400241183,1767213041904,-481.83,0.00016055,2]
[400241184,1767213041914,-660.35,0.00016055,2]
[400241185,1767213041923,-481.83,0.00016055,2]
[400241186,1767213041934,-660.35,0.00016055,2]
[400241187,1767213041944,-481.83,0.00016055,2]
[400241188,1767213041954,-354.55858705,0.00016055,2]
[400241189,1767213041964,-151.88196593,0.0001613,2]
[400241190,1767213041974,-9378.46425469,0.000162,2]
[400241191,1767213041984,-7432.1147842,0.000162,2]
[400241192,1767213041994,-5000.00445648,0.000162,5]
[400241193,1767213042004,-500.0,0.00016219,2]
[400241194,1767213042014,-831.0,0.0001636,2]
[400241195,1767213042032,-660.35,0.00016411,2]
[400241196,1767213042042,-660.35,0.00016411,2]
[400241197,1767213042052,-660.35,0.00016411,2]
[400241198,1767213042063,-1320.7,0.00016411,2]
[400241199,1767213042073,-660.35,0.00016411,2]
[400241200,1767213042084,-660.35,0.00016411,2]
[400241201,1767213042096,-660.35,0.00016411,2]
[400241202,1767213042106,-500.0,0.00016438,2]
[400241203,1767213042116,-500.0,0.00016438,2]
[400241204,1767213042126,-500.0,0.00016438,2]
[400241205,1767213042137,-500.0,0.00016438,2]
[400241206,1767213042147,-500.0,0.00016438,2]
[400241207,1767213042156,-500.0,0.00016438,2]
[400241208,1767213042167,-500.0,0.00016438,2]
[400241209,1767213042177,-500.0,0.00016438,2]
[400241210,1767213042187,-500.0,0.00016438,2]
[400241211,1767213042196,-500.0,0.00016438,2]
[400241212,1767213042207,-500.0,0.00016438,2]
[400241213,1767213042217,-500.0,0.00016438,2]
[400241214,1767213042227,-531.2548746,0.00016438,2]
[400241215,1767213042237,-500.0,0.00016438,2]
[400241216,1767213042248,-500.0,0.00016438,2]
[400241217,1767213042258,-500.0,0.00016438,2]
[400241218,1767213042268,-500.0,0.00016438,2]
[400241219,1767213042278,-4087.8,0.00016438,2]
[400241221,1767213042289,-184.85,0.00016438,2]
[400241223,1767213042299,-164.68,0.0001644,2]
[400241224,1767213042309,-164.68,0.0001644,2]
[400241225,1767213042319,-164.68,0.0001644,2]
[400241226,1767213042329,-164.68,0.0001644,2]
[400241227,1767213042339,-1085.69967803,0.00016521,2]
[400241228,1767213042349,-1000.0,0.00016521,2]
[400241229,1767213042359,-192.89183831,0.00016521,2]
[400241230,1767213042370,-1100.50654369,0.00016521,2]
[400241231,1767213042384,-1000.0,0.00016521,2]
[400241232,1767213042394,-1000.0,0.00016521,2]
[400241233,1767213042404,-1000.0,0.00016521,2]
[400241234,1767213042415,-1000.0,0.00016521,2]
[400241235,1767213042425,-1000.0,0.00016521,2]
[400241236,1767213042435,-1000.0,0.00016521,2]
[400241237,1767213042445,-1000.0,0.00016521,2]
[400241238,1767213042455,-1000.0,0.00016521,2]
[400241239,1767213042466,-1000.0,0.00016521,2]
[400241240,1767213042476,-1000.0,0.00016521,2]
[400241241,1767213042486,-356.98,0.00016548,2]
[400241242,1767213042496,-150.0,0.00016648,2]
[400241243,1767213042506,-1297.61632715,0.0001666,2]
[400241244,1767213042516,-719.0,0.00016685,2]
[400241245,1767213042526,-4087.8,0.00016712,2]
[400241246,1767213042536,-719.0,0.00016769,2]
[400241247,1767213042547,-360.80682,0.0001683,2]
[400241248,1767213042558,-360.80682,0.0001683,2]
[400241249,1767213042568,-360.80682,0.0001683,2]
[400241250,1767213042578,-151.88196593,0.00016831,2]
[400241251,1767213042588,-360.80682,0.0001685,2]
[400241252,1767213042598,-360.80683,0.0001688,2]
[400241253,1767213042608,-639.96361617,0.000169,2]
[400241254,1767213042617,-9378.46425469,0.000169,2]
[400241255,1767213042628,-7432.1147842,0.000169,2]
[400241256,1767213042638,-5025.0,0.000169,2]
[400241257,1767213042648,-360.80682,0.0001691,2]
[400241258,1767213042658,-150.99,0.00016922,2]
[400241259,1767213042669,-9999.99,0.00016922,2]
[400241260,1767213042680,-360.80683,0.0001693,2]
[400241261,1767213042690,-719.0,0.0001696,2]
[400241262,1767213042701,-38972.1632153,0.00016969,2]
[400241263,1767213042711,-150.0,0.00016973,2]
[400241264,1767213042721,-4087.8,0.00016986,2]
[400241265,1767213042731,-14709.21,0.00016986,2]
[400241266,1767213042740,-169.70178779,0.00016986,2]
[400241267,1767213042754,-235.84568341,0.0001699,2]
[400241268,1767213042764,-235.84568341,0.0001699,2]
[400241269,1767213042775,-164.68,0.0001699,2]
[400241270,1767213042785,-151.0,0.00016997,2]
[400241271,1767213042795,-3155.0,0.00016998,2]
[400241272,1767213042806,-300.0,0.00016999,2]
[400241273,1767213042816,-300.0,0.00016999,2]
[400241274,1767213042826,-300.0,0.00016999,2]
[400241275,1767213042837,-300.0,0.00016999,2]
[400241276,1767213042847,-300.0,0.00016999,2]
[400241277,1767213042859,-300.0,0.00016999,2]
[400241278,1767213042870,-150.0,0.00016999,2]
[400241279,1767213042880,-633153.75296006,0.00017,2]
[400241283,1767213043809,-1403.0,0.00015206,2]
[400241284,1767213043819,-660.35,0.00016055,2]
[400241285,1767213043829,-481.83,0.00016055,2]
[400241286,1767213043839,-8328.4498,0.00017,2]
[400241287,1767213043850,-1240.0779603,0.00017,2]
[400241288,1767213043863,-290.33096439,0.00017,2]
[400241289,1767213043874,-500.0,0.00017,2]
[400241290,1767213043886,-604.792551,0.00017,2]
[400241291,1767213043926,-345.5261616,0.00017,2]
[400241299,1767213045498,-381095.80842459,0.00017,2]
[400241300,1767213045508,-250.0,0.00017,2]
[400241301,1767213045518,-6237.81702552,0.00017,2]
[400241302,1767213045556,-3389.11466025,0.00017,2]
[400241303,1767213045775,-74255.07093002,0.00017,2]
[400241304,1767213045787,-1720.0,0.00017,2]
[400241324,1767213061287,500.0,0.00043202,120]
[400241325,1767213068244,151.0,0.00043202,120]
[400241326,1767213068568,151.0,0.00043202,120]
[400241327,1767213069180,151.0,0.00043202,120]
[400241328,1767213069769,151.0,0.00043202,120]
[400241329,1767213070401,151.0,0.00043202,120]
[400241330,1767213070998,151.0,0.00043202,120]
[400241331,1767213071610,151.0,0.00043202,120]
[400241332,1767213072268,151.0,0.00043202,120]
[400241333,1767213072881,151.0,0.00043202,120]
[400241334,1767213073526,151.0,0.00043202,120]
[400241335,1767213074182,151.0,0.00043202,120]
[400241337,1767213080346,894.75,8e-05,2]
[400241338,1767213080557,894.75,8.421e-05,2]
[400241339,1767213080776,894.75,8.842e-05,2]
[400241340,1767213080984,894.75,9.263e-05,2]
[400241341,1767213081173,894.75,9.684e-05,2]
[400241342,1767213081372,894.75,0.00010105,2]
[400241343,1767213081570,894.75,0.00010526,2]
[400241344,1767213101739,3736.76,0.00010599,2]
[400241345,1767213101762,6263.25,0.00010599,2]
[400241346,1767213120889,3736.76,0.00010599,2]
[400241347,1767213120919,10000.01,0.00010599,2]
[400241348,1767213120948,10000.01,0.00010599,2]
[400241349,1767213120979,10000.01,0.00010599,2]
[400241350,1767213121007,10000.01,0.00010599,2]
[400241351,1767213121036,10000.01,0.00010599,2]
[400241352,1767213121069,10000.01,0.00010599,2]
[400241353,1767213121098,10000.01,0.00010599,2]
[400241354,1767213121128,10000.01,0.00010599,2]
[400241355,1767213121157,10000.01,0.00010599,2]
[400241356,1767213121773,-165.49172382,0.00010599,2]
[400241357,1767213124535,-180.32884553,0.00010599,2]
[400241358,1767213127453,200.0,0.00043202,120]
[400241359,1767213128264,-343.0347923,0.00010599,2]
[400241360,1767213129691,200.0,0.00043202,120]
[400241361,1767213132336,-202.2247571,0.00010599,2]
[400241362,1767213133068,5997.776313,0.00010545,2]
[400241363,1767213134454,-166.03936823,0.00010599,2]
[400241364,1767213136191,-421.73063177,0.00010599,2]
[400241365,1767213138051,-266.50708799,0.00010599,2]
[400241366,1767213141446,-177.02627375,0.00010599,2]
[400241367,1767213145230,-239.92526043,0.00010599,2]
[400241368,1767213145735,545.259549,0.00010545,2]
[400241369,1767213149113,-174.72569709,0.00010599,2]
[400241370,1767213150670,-325.57199103,0.00010599,2]
[400241371,1767213152788,-151.03,0.00010599,2]
[400241372,1767213156843,216.48958159,0.00010499,2]
[400241373,1767213157489,-174.64776622,0.00010599,2]
[400241374,1767213159342,-198.02330436,0.00010599,2]
[400241375,1767213159407,613.21519081,0.00010598,2]
[400241376,1767213160467,577.12520897,0.00010598,2]
[400241377,1767213160511,500.0,0.00010598,2]
[400241378,1767213160553,500.0,0.00010598,2]
[400241379,1767213160591,500.0,0.00010598,2]
[400241380,1767213160628,500.37214344,0.00010598,2]
[400241381,1767213160665,49.77201319,0.00010598,2]
[400241382,1767213160687,450.22798681,0.00010598,2]
[400241383,1767213160723,500.0,0.00010598,2]
[400241384,1767213160776,500.0,0.00010598,2]
[400241385,1767213160824,500.0,0.00010598,2]
[400241386,1767213160865,500.0,0.00010598,2]
[400241387,1767213160902,500.0,0.00010598,2]
[400241388,1767213160938,500.0,0.00010598,2]
[400241389,1767213160978,500.0,0.00010598,2]
[400241390,1767213161027,500.0,0.00010598,2]
[400241391,1767213161075,500.0,0.00010598,2]
[400241392,1767213161112,473.26906906,0.00010598,2]
[400241393,1767213161149,421.25568592,0.00010598,2]
[400241394,1767213161189,500.0,0.00010598,2]
[400241395,1767213161240,500.0,0.00010598,2]
[400241396,1767213161288,500.0,0.00010598,2]
[400241397,1767213161335,500.0,0.00010598,2]
[400241398,1767213161377,500.0,0.00010598,2]
[400241399,1767213161430,500.0,0.00010598,2]
[400241400,1767213161470,184.56239138,0.00010598,2]
[400241401,1767213161524,250.39487785,0.00010598,2]
[400241402,1767213161569,500.0,0.00010598,2]
[400241403,1767213161620,220.29998898,0.00010598,2]
[400241404,1767213161646,279.70001102,0.00010598,2]
[400241405,1767213161695,500.0,0.00010598,2]
[400241406,1767213161738,500.0,0.00010598,2]
[400241407,1767213161783,500.0,0.00010598,2]
[400241408,1767213161832,500.0,0.00010598,2]
[400241409,1767213161878,500.0,0.00010598,2]
[400241410,1767213161917,500.0,0.00010598,2]
[400241411,1767213161976,500.0,0.00010598,2]
[400241412,1767213162029,500.0,0.00010598,2]
[400241413,1767213162074,500.0,0.00010598,2]
[400241414,1767213162120,500.0,0.00010598,2]
[400241415,1767213162173,500.0,0.00010598,2]
[400241416,1767213162223,500.0,0.00010598,2]
[400241417,1767213162268,500.0,0.00010598,2]
[400241418,1767213162321,500.0,0.00010598,2]
[400241419,1767213162365,500.0,0.00010598,2]
[400241420,1767213162409,516.76199796,0.00010598,2]
[400241421,1767213162459,500.0,0.00010598,2]
[400241422,1767213162500,500.0,0.00010598,2]
[400241423,1767213162540,500.0,0.00010598,2]
[400241424,1767213162580,203.54799102,0.00010598,2]
[400241425,1767213162606,296.45200898,0.00010598,2]
[400241426,1767213162655,500.0,0.00010598,2]
[400241427,1767213162695,500.0,0.00010598,2]
[400241428,1767213164306,-255.0,0.00010599,2]
[400241429,1767213166045,-218.69480128,0.00010599,2]
[400241430,1767213167441,-296.46383651,0.00010599,2]
[400241431,1767213174124,-173.10566553,0.00010599,2]
[400241432,1767213176478,-1246.23321181,0.00010599,2]
[400241433,1767213178506,-158.06859676,0.00010599,2]
[400241434,1767213180650,-238.0,0.00010599,2]
[400241435,1767213181430,150.0,0.00010598,2]
[400241436,1767213182787,3984.39616337,0.00010598,2]
[400241437,1767213182819,-217.57605846,0.00010599,2]
[400241438,1767213182986,4569.16182765,0.00010598,2]
[400241439,1767213183009,1138.47471213,0.00010598,2]
[400241440,1767213185971,500.0,0.00010598,2]
[400241441,1767213191330,500.0,0.00010598,2]
[400241442,1767213191673,1200.0,0.00010598,2]
[400241443,1767213218464,2084.941742,0.00010545,2]
[400241444,1767213222606,500.0,0.00010598,2]
[400241445,1767213231346,1843.22617101,0.00010499,2]
[400241446,1767213248497,500.0,0.00010598,2]
[400241447,1767213256872,354.47941879,0.00010499,2]
[400241448,1767213277088,151.42397704,0.00010499,2]
[400241449,1767213301269,1200.0,0.00010598,2]
[400241450,1767213301307,300.0,0.00010598,2]
[400241451,1767213301346,300.0,0.00010598,2]
[400241452,1767213361714,300.0,0.00010598,2]
[400241453,1767213362122,150.0,0.00010598,2]
[400241454,1767213362992,500.0,0.00043203,120]
[400241455,1767213377282,500.0,0.00010598,2]
[400241456,1767213380839,500.0,0.00010598,2]
[400241457,1767213380891,500.0,0.00010598,2]
[400241458,1767213380935,500.0,0.00010598,2]
[400241459,1767213380986,500.0,0.00010598,2]
[400241460,1767213381046,500.0,0.00010598,2]
[400241461,1767213381100,200.0,0.00010598,2]
[400241462,1767213384702,440.63526403,0.00010499,2]
[400241463,1767213396767,500.0,0.00010598,2]
[400241464,1767213396825,500.0,0.00010598,2]
[400241465,1767213396868,500.0,0.00010598,2]
[400241466,1767213396929,500.0,0.00010598,2]
[400241467,1767213397008,500.0,0.00010598,2]
[400241468,1767213397054,200.0,0.00010598,2]
[400241469,1767213413589,403.47134014,0.00010598,2]
[400241470,1767213413619,96.52865986,0.00010598,2]
[400241471,1767213413663,500.0,0.00010598,2]
[400241472,1767213413711,500.0,0.00010598,2]
[400241473,1767213413755,500.0,0.00010598,2]
[400241474,1767213413805,500.0,0.00010598,2]
[400241475,1767213413874,200.0,0.00010598,2]
[400241476,1767213424218,500.0,0.00010598,2]
[400241477,1767213424262,500.0,0.00010598,2]
[400241478,1767213424305,500.0,0.00010598,2]
[400241479,1767213424376,500.0,0.00010598,2]
[400241480,1767213424424,200.0,0.00010598,2]
[400241481,1767213441383,610.85661974,0.00010598,2]
[400241482,1767213441695,500.0,0.00010598,2]
[400241483,1767213441749,500.0,0.00010598,2]
[400241484,1767213441800,500.0,0.00010598,2]
[400241485,1767213441873,520.21752575,0.00010598,2]
[400241486,1767213452210,500.0,0.00010598,2]
[400241487,1767213452526,500.0,0.00010598,2]
[400241488,1767213452821,500.0,0.00010598,2]
[400241489,1767213453127,196.425518,0.00010598,2]
[400241490,1767213463188,163.69656323,0.00010598,2]
[400241491,1767213541431,150.0,0.00010598,2]
[400241492,1767213545744,245.85310811,0.00010598,2]
[400241493,1767213560142,500.0,0.00010598,2]
[400241494,1767213560188,116.43200531,0.00010598,2]
[400241495,1767213560217,383.56799469,0.00010598,2]
[400241496,1767213560258,500.0,0.00010598,2]
[400241497,1767213560305,500.0,0.00010598,2]
[400241498,1767213560352,500.0,0.00010598,2]
[400241499,1767213560408,483.34050417,0.00010598,2]
[400241500,1767213589471,500.0,0.00010598,2]
[400241501,1767213589512,483.34050417,0.00010598,2]
[400241502,1767213589555,500.0,0.00010598,2]
[400241503,1767213589599,500.0,0.00010598,2]
[400241504,1767213599584,400.08171035,0.00010598,2]
[400241505,1767213601128,1200.0,0.00010598,2]
[400241506,1767213601180,300.0,0.00010598,2]
[400241507,1767213601222,300.0,0.00010598,2]
[400241508,1767213607844,554.72382414,0.00010598,2]
[400241509,1767213609146,775.7149,0.00010499,2]
[400241510,1767213611780,242.7291546,0.00010598,2]
[400241511,1767213620875,-266.68199917,0.00010599,2]
[400241512,1767213627305,194.48831976,0.00010598,2]
[400241514,1767213662284,500.0,0.00043197,120]
[400241515,1767213669423,594.2092946,0.00010499,2]
[400241516,1767213670096,881.27052806,0.00010499,2]
[400241517,1767213678861,-15000.0,0.00010599,2]
[400241518,1767213694026,206.54326546,0.00010387,2]
[400241519,1767213694051,3285.18973454,0.00010387,2]
[400241520,1767213694370,160.575,0.00010387,2]
[400241521,1767213721569,150.0,0.00010598,2]
[400241522,1767213731674,6404.24526546,0.00010499,2]
[400241523,1767213731697,7299.38253454,0.00010499,2]
[400241524,1767213738029,178.41,0.00010499,2]
[400241525,1767213742564,256.79390013,0.00010598,2]
[400241526,1767213747559,151.42397703,0.00010499,2]
[400241527,1767213798052,-13000.0,0.00010599,2]
[400241528,1767213841190,300.0,0.00010598,2]
[400241529,1767213865619,-24000.0,0.00010599,2]
[400241530,1767213901217,300.0,0.00010598,2]
[400241531,1767213901256,300.0,0.00010598,2]
[400241532,1767213901346,1200.0,0.00010598,2]
[400241533,1767213901537,13.9995883,0.00010598,2]
[400241534,1767213901563,136.0004117,0.00010598,2]
[400241535,1767213903006,300.0,0.00010598,2]
[400241536,1767213907652,151.0,0.00043198,120]
[400241538,1767213936405,2036.5426,0.00010499,2]
[400241539,1767213955390,175.70407613,0.00010499,2]
[400241540,1767213961199,500.0,0.00043198,120]
[400241541,1767213982051,200.0,0.00043198,30]
[400241542,1767214024907,4104.1239,0.00010499,2]
[400241543,1767214027410,628.41134831,0.00043198,120]
[400241544,1767214031305,169.8906,0.00010499,2]
[400241551,1767214037453,2500.0,0.00010499,2]
[400241552,1767214038082,151.0,0.00010599,2]
[400241553,1767214038709,151.0,0.00010599,2]
[400241554,1767214039336,151.0,0.00010599,2]
[400241555,1767214039961,124.74841217,0.00010599,2]
[400241556,1767214039984,26.25158783,0.00010599,2]
[400241557,1767214040579,151.0,0.00010599,2]
[400241558,1767214040911,200.0,0.00043198,120]
[400241559,1767214041295,151.0,0.00010599,2]
[400241560,1767214041895,151.0,0.00010599,2]
[400241561,1767214042490,151.0,0.00010599,2]
[400241562,1767214043099,151.0,0.00010599,2]
[400241563,1767214043716,151.0,0.00010599,2]
[400241564,1767214044370,226.56704733,0.00010599,2]
[400241566,1767214057355,-1100.8711794,0.00010599,2]
[400241567,1767214057457,-10000.01,0.00010599,2]
[400241568,1767214057575,-10000.01,0.00010599,2]
[400241569,1767214057878,-10000.01,0.00010599,2]
[400241570,1767214057892,-10000.01,0.00010599,2]
[400241571,1767214057938,-10000.01,0.00010599,2]
[400241572,1767214058080,-10000.01,0.00010599,2]
[400241573,1767214058257,-10000.01,0.00010599,2]
[400241574,1767214058387,-10000.01,0.00010599,2]
[400241575,1767214060356,-10000.01,0.00010599,2]
[400241576,1767214060669,-10000.01,0.00010599,2]
[400241577,1767214081288,300.0,0.00010598,2]
[400241578,1767214081524,300.0,0.00010598,2]
[400241579,1767214141924,300.0,0.00010598,2]
[400241580,1767214145948,152.8469726,0.00043197,60]
[400241581,1767214153933,9100.01,0.00010499,2]
[400241582,1767214153961,10000.01,0.00010499,2]
[400241583,1767214153989,10000.01,0.00010499,2]
[400241584,1767214154018,10000.01,0.00010499,2]
[400241585,1767214154047,10000.01,0.00010499,2]
[400241586,1767214154076,10000.01,0.00010499,2]
[400241587,1767214154104,10000.01,0.00010499,2]
[400241588,1767214154132,10000.01,0.00010499,2]
[400241589,1767214154159,10000.01,0.00010499,2]
[400241590,1767214154186,10000.01,0.00010499,2]
[400241591,1767214154954,-168.38338512,0.00010499,2]
[400241592,1767214158160,-236.0,0.00010499,2]
[400241593,1767214159563,-300.0,0.00010499,2]
[400241649,1767214164458,-932.80499287,0.00010499,2]
[400241652,1767214165964,-160.71407549,0.00010499,2]
[400241653,1767214168734,-253.15861808,0.00010499,2]
[400241654,1767214170742,-341.61754358,0.00010499,2]
[400241655,1767214172812,-237.68370971,0.00010499,2]